lending/lending_fUSD_20251020
["ID","MTS","AMOUNT","RATE_DAILY","PERIOD"]
[391915935,1760983840466,-352.36,0.00033794,2]
[391915937,1760983840475,-413.94,0.0003381,2]
[391915939,1760983840484,-150.0,0.0003381,2]
[391915940,1760983840493,-500.0,0.00033839,7]
[391915943,1760983840502,-454.0,0.00033916,2]
[391915944,1760983840513,-200.0,0.00034,2]
[391915947,1760983840523,-1000.0,0.00034,2]
[391915948,1760983840533,-200.0,0.00034027,10]
[391915951,1760983840543,-1000.0,0.00034063,2]
[391915954,1760983840553,-1000.0,0.00034068,2]
[391915957,1760983840562,-1000.0,0.0003408,2]
[391915958,1760983840571,-500.0,0.00034087,7]
[391915960,1760983840580,-1000.0,0.00034096,2]
[391915963,1760983840590,-1425.0,0.00034096,2]
[391915964,1760983840600,-2500.0,0.00034097,2]
[391915966,1760983840609,-1000.0,0.00034098,2]
[391915968,1760983840618,-1425.0,0.00034108,2]
[391915970,1760983840628,-1000.0,0.00034112,2]
[391915972,1760983840637,-1000.0,0.0003415,2]
[391915974,1760983840646,-1000.0,0.00034154,2]
[391915976,1760983840655,-1425.0,0.00034158,2]
[391915978,1760983840665,-1557.57382274,0.00034166,2]
[391915980,1760983840674,-1000.0,0.00034171,2]
[391915982,1760983840683,-1000.0,0.00034179,2]
[391915984,1760983840693,-1000.0,0.00034186,2]
[391915986,1760983840702,-5000.0,0.00034192,2]
[391915988,1760983840712,-503.8364674,0.00034192,6]
[391915990,1760983840722,-1000.0,0.00034199,2]
[391915992,1760983840732,-5732.82974727,0.00034201,2]
[391915994,1760983840741,-5732.82974726,0.00034201,2]
[391915996,1760983840750,-5732.82974726,0.00034201,2]
[391915998,1760983840760,-5732.82974726,0.00034201,2]
[391916000,1760983840769,-5732.82974726,0.00034201,2]
[391916002,1760983840779,-5732.82974726,0.00034202,2]
[391916004,1760983840789,-500.0,0.00034202,2]
[391916006,1760983840799,-500.0,0.00034202,2]
[391916008,1760983840808,-500.0,0.00034202,2]
[391916010,1760983840818,-500.0,0.00034202,2]
[391916012,1760983840828,-500.0,0.00034202,2]
[391916014,1760983840837,-500.0,0.00034202,2]
[391916016,1760983840847,-500.0,0.00034202,2]
[391916018,1760983840855,-500.0,0.00034202,2]
[391916020,1760983840865,-500.0,0.00034202,2]
[391916022,1760983840875,-500.0,0.00034202,2]
[391916024,1760983840884,-500.0,0.00034202,2]
[391916026,1760983840894,-500.0,0.00034202,2]
[391916028,1760983840902,-500.0,0.00034202,2]
[391916030,1760983840912,-500.0,0.00034202,2]
[391916032,1760983840921,-500.0,0.00034202,2]
[391916034,1760983840931,-500.0,0.00034202,2]
[391916036,1760983840939,-500.0,0.00034202,2]
[391916038,1760983840949,-500.0,0.00034202,2]
[391916040,1760983840958,-500.0,0.00034202,2]
[391916042,1760983840966,-500.0,0.00034202,2]
[391916044,1760983840976,-500.0,0.00034202,2]
[391916046,1760983840987,-500.0,0.00034202,2]
[391916048,1760983840997,-500.0,0.00034202,2]
[391916050,1760983841006,-500.0,0.00034202,2]
[391916052,1760983841016,-325.68288219,0.00034202,2]
[391916054,1760983841025,-153.60079182,0.00034202,30]
[391916056,1760983841036,-153.60079182,0.00034202,30]
[391916058,1760983841046,-153.60079182,0.00034202,30]
[391916060,1760983841055,-153.60079182,0.00034202,30]
[391916062,1760983841065,-153.60079182,0.00034202,30]
[391916064,1760983841074,-153.60079182,0.00034202,30]
[391916066,1760983841083,-153.60079182,0.00034202,30]
[391916068,1760983841093,-153.60079182,0.00034202,30]
[391916070,1760983841102,-153.60079182,0.00034202,30]
[391916072,1760983841111,-153.60079182,0.00034202,30]
[391916074,1760983841120,-153.60079182,0.00034202,30]
[391916076,1760983841129,-153.60079182,0.00034202,30]
[391916078,1760983841138,-153.60079182,0.00034202,30]
[391916080,1760983841147,-153.60079182,0.00034202,30]
[391916082,1760983841157,-153.60079182,0.00034202,30]
[391916084,1760983841166,-153.6,0.00034202,30]
[391916086,1760983841175,-5732.82974726,0.00034202,2]
[391916088,1760983841184,-5732.82974726,0.00034202,2]
[391916090,1760983841193,-5732.82974726,0.00034202,2]
[391916092,1760983841203,-5732.82974726,0.00034202,2]
[391916094,1760983841212,-192.66701632,0.00034202,2]
[391916096,1760983841221,-185.95434549,0.00034202,2]
[391916099,1760983841231,-280.93327913,0.00034202,2]
[391916101,1760983841240,-1000.0,0.00034208,2]
[391916103,1760983841250,-1000.0,0.00034209,2]
[391916105,1760983841260,-159.2438912,0.00034209,7]
[391916106,1760983841270,-373.92137165,0.00034209,7]
[391916107,1760983841279,-500.0,0.00034216,7]
[391916108,1760983841288,-2000.0,0.00034222,3]
[391916109,1760983841298,-1000.0,0.00034231,2]
[391916110,1760983841307,-1000.0,0.00034234,2]
[391916111,1760983841316,-152.06004125,0.00034235,2]
[391916112,1760983841326,-150.0,0.00034244,2]
[391916113,1760983841336,-1000.0,0.00034259,2]
[391916114,1760983841345,-571.0,0.00034269,2]
[391916115,1760983841354,-3410.0,0.00034269,2]
[391916116,1760983841364,-1410.31,0.00034269,2]
[391916117,1760983841374,-786.0,0.00034269,2]
[391916118,1760983841384,-1309.055,0.00034269,2]
[391916119,1760983841393,-1546.0,0.00034269,2]
[391916120,1760983841403,-816.0,0.00034269,2]
[391916121,1760983841412,-1268.0,0.00034269,2]
[391916122,1760983841423,-6446.0,0.00034269,2]
[391916123,1760983841432,-6440.0,0.00034269,2]
[391916125,1760983841441,-2591.0,0.00034269,2]
[391916127,1760983841450,-665.908,0.00034269,2]
[391916129,1760983841459,-150.0,0.0003427,2]
[391916131,1760983841468,-500.0,0.00034273,5]
[391916133,1760983841477,-500.0,0.00034273,5]
[391916134,1760983841486,-500.0,0.00034273,5]
[391916136,1760983841496,-500.0,0.00034273,5]
[391916138,1760983841505,-500.0,0.00034273,5]
[391916140,1760983841514,-500.0,0.00034273,5]
[391916142,1760983841524,-500.0,0.00034273,5]
[391916144,1760983841533,-500.0,0.00034273,5]
[391916146,1760983841543,-500.0,0.00034273,5]
[391916148,1760983841552,-200.0,0.00034273,5]
[391916150,1760983841561,-500.0,0.00034273,5]
[391916152,1760983841571,-500.0,0.00034273,5]
[391916154,1760983841581,-509.99531052,0.00034273,5]
[391916156,1760983841591,-2115.0,0.00034274,2]
[391916159,1760983841603,-500.0,0.00034281,8]
[391916161,1760983841612,-500.0,0.00034281,8]
[391916163,1760983841622,-500.0,0.00034281,8]
[391916165,1760983841632,-500.0,0.00034281,8]
[391916167,1760983841641,-500.0,0.00034281,7]
[391916169,1760983841650,-500.0,0.00034281,8]
[391916170,1760983841659,-500.0,0.00034281,8]
[391916172,1760983841669,-627.1,0.00034281,8]
[391916174,1760983841679,-1181.21,0.00034281,8]
[391916177,1760983841689,-500.0,0.00034281,8]
[391916178,1760983841698,-1309.79507648,0.00034287,2]
[391916180,1760983841707,-500.0,0.00034291,8]
[391916182,1760983841716,-500.0,0.00034291,8]
[391916185,1760983841725,-500.0,0.00034291,8]
[391916187,1760983841735,-500.0,0.00034291,8]
[391916189,1760983841745,-500.0,0.00034291,8]
[391916191,1760983841755,-500.0,0.00034291,8]
[391916193,1760983841764,-386.38528649,0.00034291,8]
[391916195,1760983841774,-500.0,0.00034291,8]
[391916197,1760983841783,-508.79376071,0.00034291,8]
[391916199,1760983841793,-500.0,0.00034291,8]
[391916201,1760983841802,-500.0,0.00034291,7]
[391916203,1760983841811,-500.0,0.00034291,8]
[391916205,1760983841821,-305.49462475,0.00034291,8]
[391916207,1760983841830,-627.1,0.00034291,8]
[391916209,1760983841839,-1181.21,0.00034291,8]
[391916211,1760983841849,-500.0,0.00034291,8]
[391916213,1760983841859,-283.33276203,0.00034292,2]
[391916215,1760983841868,-283.33276203,0.00034292,2]
[391916217,1760983841878,-283.33276203,0.00034292,2]
[391916219,1760983841888,-16925.4192008,0.00034292,2]
[391916221,1760983841897,-20490.5984344,0.00034292,2]
[391916223,1760983841907,-1145.5843127,0.00034292,2]
[391916225,1760983841916,-151.0,0.00034292,30]
[391916226,1760983841925,-1000.0,0.00034292,2]
[391916228,1760983841935,-1159.5012629,0.00034292,2]
[391916231,1760983841945,-151.0,0.00034292,30]
[391916232,1760983841954,-260.136864,0.00034292,30]
[391916234,1760983841963,-1256.2054598,0.00034292,2]
[391916236,1760983841972,-281.95534183,0.000343,2]
[391916238,1760983841981,-394.0,0.000343,2]
[391916240,1760983841995,-840.22429339,0.00034301,2]
[391916242,1760983842004,-500.0,0.00034301,8]
[391916244,1760983842013,-500.0,0.00034301,8]
[391916246,1760983842022,-500.0,0.00034301,8]
[391916248,1760983842034,-500.0,0.00034301,8]
[391916250,1760983842043,-500.0,0.00034301,8]
[391916252,1760983842053,-500.0,0.00034301,8]
[391916254,1760983842062,-500.0,0.00034301,8]
[391916256,1760983842072,-500.0,0.00034301,8]
[391916258,1760983842082,-500.0,0.00034301,8]
[391916260,1760983842091,-500.0,0.00034301,8]
[391916262,1760983842101,-500.0,0.00034301,8]
[391916264,1760983842110,-500.0,0.00034301,8]
[391916266,1760983842119,-500.0,0.00034301,8]
[391916268,1760983842128,-500.0,0.00034301,8]
[391916270,1760983842137,-500.0,0.00034301,8]
[391916272,1760983842147,-500.0,0.00034301,8]
[391916274,1760983842156,-500.0,0.00034301,8]
[391916276,1760983842166,-503.36,0.00034301,8]
[391916278,1760983842175,-500.0,0.00034301,8]
[391916280,1760983842185,-500.0,0.00034301,8]
[391916282,1760983842194,-500.0,0.00034301,8]
[391916284,1760983842203,-500.0,0.00034301,8]
[391916286,1760983842214,-500.0,0.00034301,8]
[391916288,1760983842223,-500.0,0.00034301,8]
[391916290,1760983842233,-500.0,0.00034301,8]
[391916292,1760983842242,-500.0,0.00034301,8]
[391916294,1760983842251,-500.0,0.00034301,8]
[391916296,1760983842261,-500.0,0.00034301,8]
[391916298,1760983842270,-500.0,0.00034301,8]
[391916300,1760983842280,-500.0,0.00034301,8]
[391916302,1760983842289,-500.0,0.00034301,8]
[391916304,1760983842298,-379.58058795,0.00034301,8]
[391916306,1760983842308,-150.0,0.00034301,2]
[391916308,1760983842318,-591.87086658,0.00034301,2]
[391916310,1760983842327,-150.0,0.00034301,2]
[391916312,1760983842336,-12910.1494722,0.00034301,2]
[391916314,1760983842346,-500.0,0.00034301,8]
[391916316,1760983842356,-500.0,0.00034301,8]
[391916318,1760983842365,-500.0,0.00034301,8]
[391916320,1760983842375,-500.0,0.00034301,8]
[391916322,1760983842384,-500.0,0.00034301,8]
[391916324,1760983842393,-500.0,0.00034301,8]
[391916326,1760983842402,-500.0,0.00034301,8]
[391916328,1760983842411,-500.0,0.00034301,8]
[391916330,1760983842421,-500.0,0.00034301,8]
[391916332,1760983842430,-500.0,0.00034301,8]
[391916334,1760983842440,-500.0,0.00034301,8]
[391916336,1760983842451,-500.0,0.00034301,8]
[391916338,1760983842460,-500.0,0.00034301,8]
[391916340,1760983842469,-500.0,0.00034301,8]
[391916342,1760983842478,-500.0,0.00034301,8]
[391916344,1760983842487,-500.0,0.00034301,8]
[391916346,1760983842496,-500.0,0.00034301,8]
[391916348,1760983842505,-500.0,0.00034301,8]
[391916350,1760983842515,-500.0,0.00034301,8]
[391916352,1760983842525,-187.55897267,0.00034301,8]
[391916354,1760983842535,-351.10128926,0.00034301,8]
[391916357,1760983842544,-500.0,0.00034301,8]
[391916359,1760983842555,-500.0,0.00034301,8]
[391916360,1760983842565,-500.0,0.00034301,8]
[391916363,1760983842575,-242.69924436,0.00034301,8]
[391916364,1760983842584,-500.0,0.00034301,7]
[391916367,1760983842594,-500.0,0.00034301,7]
[391916369,1760983842608,-500.0,0.00034301,7]
[391916371,1760983842618,-500.0,0.00034301,7]
[391916373,1760983842628,-500.0,0.00034301,7]
[391916375,1760983842638,-500.0,0.00034301,7]
[391916377,1760983842648,-500.0,0.00034301,7]
[391916379,1760983842658,-607.2,0.00034301,7]
[391916381,1760983842668,-150.0,0.00034301,2]
[391916383,1760983842677,-151.0,0.00034301,30]
[391916385,1760983842687,-265.022554,0.00034301,30]
[391916387,1760983842696,-500.0,0.00034301,8]
[391916389,1760983842705,-500.0,0.00034301,8]
[391916391,1760983842715,-500.0,0.00034301,8]
[391916393,1760983842724,-500.0,0.00034301,8]
[391916395,1760983842733,-500.0,0.00034301,8]
[391916397,1760983842742,-500.0,0.00034301,8]
[391916399,1760983842752,-500.0,0.00034301,8]
[391916401,1760983842761,-500.0,0.00034301,8]
[391916403,1760983842771,-500.0,0.00034301,8]
[391916405,1760983842780,-500.0,0.00034301,8]
[391916407,1760983842789,-500.0,0.00034301,8]
[391916409,1760983842799,-500.0,0.00034301,8]
[391916411,1760983842808,-500.0,0.00034301,8]
[391916413,1760983842817,-500.0,0.00034301,8]
[391916415,1760983842827,-500.0,0.00034301,8]
[391916418,1760983842837,-151.0,0.00034301,15]
[391916421,1760983842847,-151.0,0.00034301,30]
[391916423,1760983842860,-151.0,0.00034301,30]
[391916425,1760983842870,-151.0,0.00034301,30]
[391916427,1760983842880,-151.0,0.00034301,30]
[391916429,1760983842889,-151.0,0.00034301,30]
[391916431,1760983842899,-151.0,0.00034301,30]
[391916433,1760983842908,-887.68193,0.00034301,2]
[391916435,1760983842918,-151.0,0.00034301,30]
[391916437,1760983842927,-151.0,0.00034301,30]
[391916439,1760983842937,-151.0,0.00034301,30]
[391916441,1760983842946,-627.1,0.00034301,8]
[391916443,1760983842955,-627.1,0.00034301,8]
[391916445,1760983842965,-627.1,0.00034301,8]
[391916465,1760983843096,-627.1,0.00034301,8]
[391916467,1760983843109,-627.1,0.00034301,8]
[391916469,1760983843120,-627.1,0.00034301,8]
[391916471,1760983843130,-627.1,0.00034301,8]
[391916473,1760983843140,-627.1,0.00034301,8]
[391916475,1760983843150,-627.1,0.00034301,8]
[391916477,1760983843160,-627.1,0.00034301,8]
[391916479,1760983843169,-627.1,0.00034301,8]
[391916481,1760983843179,-627.1,0.00034301,8]
[391916483,1760983843188,-627.1,0.00034301,8]
[391916485,1760983843197,-627.1,0.00034301,8]
[391916487,1760983843206,-627.1,0.00034301,8]
[391916489,1760983843215,-627.1,0.00034301,8]
[391916491,1760983843225,-627.1,0.00034301,8]
[391916493,1760983843234,-627.1,0.00034301,8]
[391916495,1760983843243,-627.1,0.00034301,8]
[391916497,1760983843253,-627.1,0.00034301,8]
[391916500,1760983843263,-627.1,0.00034301,8]
[391916501,1760983843272,-627.11,0.00034301,8]
[391916503,1760983843282,-500.0,0.00034301,8]
[391916505,1760983843291,-151.0,0.00034301,30]
[391916507,1760983843301,-151.0,0.00034301,30]
[391916510,1760983843311,-151.0,0.00034301,30]
[391916512,1760983843320,-500.0,0.00034301,8]
[391916514,1760983843331,-500.0,0.00034301,8]
[391916516,1760983843340,-500.0,0.00034301,8]
[391916518,1760983843351,-500.0,0.00034301,8]
[391916520,1760983843360,-500.0,0.00034301,8]
[391916522,1760983843370,-500.0,0.00034301,8]
[391916524,1760983843379,-500.0,0.00034301,8]
[391916526,1760983843388,-500.0,0.00034301,8]
[391916528,1760983843398,-500.0,0.00034301,8]
[391916530,1760983843408,-500.0,0.00034301,8]
[391916532,1760983843419,-500.0,0.00034301,8]
[391916534,1760983843429,-475.0262511,0.00034301,8]
[391916536,1760983843438,-1181.21,0.00034301,8]
[391916538,1760983843448,-1181.21,0.00034301,8]
[391916540,1760983843457,-1181.21,0.00034301,8]
[391916542,1760983843466,-1181.21,0.00034301,8]
[391916544,1760983843476,-1181.21,0.00034301,8]
[391916546,1760983843485,-1181.21,0.00034301,8]
[391916548,1760983843495,-1181.21,0.00034301,8]
[391916550,1760983843505,-1181.21,0.00034301,8]
[391916552,1760983843514,-1181.21,0.00034301,8]
[391916554,1760983843523,-1181.21,0.00034301,8]
[391916556,1760983843533,-1181.21,0.00034301,8]
[391916558,1760983843543,-1181.21,0.00034301,8]
[391916560,1760983843552,-1181.21,0.00034301,8]
[391916562,1760983843561,-1181.21,0.00034301,8]
[391916564,1760983843571,-1181.21,0.00034301,8]
[391916566,1760983843580,-1181.21,0.00034301,8]
[391916568,1760983843589,-1181.21,0.00034301,8]
[391916570,1760983843598,-1181.21,0.00034301,8]
[391916572,1760983843607,-1181.21,0.00034301,8]
[391916574,1760983843617,-1181.21,0.00034301,8]
[391916576,1760983843627,-1181.21,0.00034301,8]
[391916578,1760983843636,-1181.32544435,0.00034301,8]
[391916580,1760983843645,-150.0,0.00034301,2]
[391916582,1760983843654,-257.7817054,0.00034301,2]
[391916584,1760983843666,-150.0,0.00034301,2]
[391916586,1760983843675,-150.0,0.00034301,2]
[391916588,1760983843685,-150.0,0.00034301,2]
[391916590,1760983843695,-500.0,0.00034301,2]
[391916592,1760983843704,-150.0,0.00034301,2]
[391916594,1760983843714,-150.0,0.00034301,2]
[391916596,1760983843723,-200.0,0.00034301,2]
[391916598,1760983843732,-150.77597293,0.00034301,2]
[391916600,1760983843742,-500.0,0.00034301,2]
[391916603,1760983843751,-500.0,0.00034301,2]
[391916605,1760983843760,-150.0,0.00034301,2]
[391916607,1760983843770,-202.01765236,0.00034301,2]
[391916609,1760983843779,-150.0,0.00034301,2]
[391916611,1760983843789,-206.69073684,0.00034301,2]
[391916613,1760983843798,-150.0,0.00034301,2]
[391916615,1760983843808,-150.0,0.00034301,2]
[391916617,1760983843817,-150.0,0.00034301,2]
[391916619,1760983843826,-500.0,0.00034301,8]
[391916621,1760983843837,-500.0,0.00034301,8]
[391916623,1760983843846,-500.0,0.00034301,8]
[391916625,1760983843856,-500.0,0.00034301,8]
[391916627,1760983843866,-500.0,0.00034301,8]
[391916629,1760983843876,-500.0,0.00034301,8]
[391916631,1760983843885,-500.0,0.00034301,8]
[391916633,1760983843894,-500.0,0.00034301,8]
[391916635,1760983843903,-500.0,0.00034301,8]
[391916637,1760983843913,-500.0,0.00034301,8]
[391916639,1760983843922,-500.0,0.00034301,8]
[391916641,1760983843931,-500.0,0.00034301,8]
[391916643,1760983843940,-500.0,0.00034301,8]
[391916645,1760983843949,-336.8,0.00034301,8]
[391916647,1760983843958,-1000.0,0.00034301,30]
[391916649,1760983843967,-150.0,0.00034301,2]
[391916651,1760983843978,-150.0,0.00034301,2]
[391916653,1760983843990,-5758.483877,0.00034301,31]
[391916655,1760983844000,-829596.19160969,0.00034302,120]
[391916657,1760983844009,-247977.07713342,0.00034302,120]
[391916660,1760983844026,-345.96678339,0.00034302,120]
[391916665,1760983844067,-217902.11560919,0.00034302,120]
[391916714,1760983844553,-500.0,0.00034273,5]
[391916715,1760983844562,-38.5,0.00034302,120]
[391916716,1760983844580,-565.0373289,0.00034302,120]
[391916859,1760983846080,-500.0,0.00034273,5]
[391916861,1760983846090,-12280.98956509,0.00034302,120]
[391916866,1760983846135,-17375.4045776,0.00034302,120]
[391916869,1760983846146,-40245.47476381,0.00034302,120]
[391916875,1760983846200,-695.7338,0.00034302,120]
[391916886,1760983846295,-12120.0,0.00034302,120]
[391916984,1760983928846,600.0,0.00034355,30]
[391916985,1760983929428,241.67020457,0.00034355,30]
[391916986,1760983929496,600.0,0.00034355,30]
[391916987,1760983930150,600.0,0.00034355,30]
[391916989,1760983936747,300.0,0.00034355,30]
[391916990,1760983937573,300.0,0.00034355,30]
[391916994,1760984053681,1878.58,0.00030044,120]
[391916995,1760984083114,450.0,0.00030136,120]
[391916996,1760984226985,229.08304948,0.00034355,30]
[391917011,1760984639303,150.0,0.00029686,120]
[391917019,1760984706470,213.47064065,0.00034355,120]
[391917020,1760984708166,15000.0,0.00015,2]
[391917021,1760984708191,15000.0,0.00015,2]
[391917022,1760984708214,15000.0,0.00015,2]
[391917023,1760984708237,15000.0,0.00015,2]
[391917024,1760984708264,15000.0,0.00015,2]
[391917025,1760984708293,15000.0,0.00015,2]
[391917026,1760984708318,15000.0,0.00015,2]
[391917027,1760984708342,15000.0,0.00015,2]
[391917028,1760984708366,15000.0,0.00015,2]
[391917029,1760984708390,15000.0,0.00015,2]
[391917030,1760984708416,15000.0,0.00015,2]
[391917031,1760984708441,15000.0,0.00015,2]
[391917032,1760984708463,15000.0,0.00015,2]
[391917033,1760984708486,15000.0,0.00015,2]
[391917034,1760984708509,15000.0,0.00015,2]
[391917035,1760984708532,15000.0,0.00015,2]
[391917036,1760984708556,15000.0,0.00015,2]
[391917037,1760984708578,15000.0,0.00015,2]
[391917038,1760984708604,15000.0,0.00015,2]
[391917039,1760984708627,15000.0,0.00015,2]
[391917040,1760984708657,24724.04,0.00015,2]
[391917041,1760984719790,1500.0,0.00029897,120]
[391917047,1760984762102,156.49,0.00029848,120]
[391917048,1760984766934,-194.52496864,0.000139,2]
[391917050,1760984773386,-250.78271875,0.000139,2]
[391917051,1760984776438,-273.76741579,0.000139,2]
[391917052,1760984779437,-335.04487909,0.000139,2]
[391917055,1760984797525,-194.33049495,0.00013899,2]
[391917056,1760984797548,-21.5320928,0.00013899,2]
[391917057,1760984799552,-188.31477724,0.00013899,2]
[391917058,1760984799576,-154.68957005,0.00013899,2]
[391917059,1760984802075,-168.07754704,0.00013899,2]
[391917060,1760984804267,-174.8995712,0.00013899,2]
[391917061,1760984804296,-118.89501469,0.00013899,2]
[391917063,1760984806173,-166.66,0.00013899,2]
[391917065,1760984807603,-214.44498531,0.00013899,2]
[391917066,1760984807627,-98.13294356,0.00013899,2]
[391917067,1760984809165,-346.0,0.00013899,2]
[391917069,1760984827456,-200.0,0.00013828,2]
[391917070,1760984830176,-371.28600051,0.00013828,2]
[391917071,1760984831684,-275.00611885,0.00013828,2]
[391917074,1760984836233,-274.21,0.00013828,2]
[391917077,1760984837664,-166.19674465,0.00013828,2]
[391917079,1760984839873,-191.54104273,0.00013828,2]
[391917080,1760984840508,3011.14331949,0.0001305,2]
[391917081,1760984841868,-410.52093726,0.00013828,2]
[391917082,1760984841891,-300.0,0.00013898,2]
[391917083,1760984841914,-56.25646066,0.00013898,2]
[391917084,1760984845050,-243.74353934,0.00013898,2]
[391917085,1760984845072,-58.25646066,0.00013898,2]
[391917086,1760984847246,-121.74353934,0.00013898,2]
[391917087,1760984847272,-47.84534159,0.00013899,2]
[391917088,1760984849717,-8.02171485,0.00013899,2]
[391917089,1760984849742,-159.17457497,0.00013899,2]
[391917090,1760984852129,-216.86076818,0.00013899,2]
[391917091,1760984854137,-123.96465685,0.00013899,2]
[391917092,1760984854171,-157.97828515,0.00013899,2]
[391917093,1760984856594,-233.93749573,0.00013899,2]
[391917094,1760984860144,-108.08421912,0.00013899,2]
[391917095,1760984860169,-203.43815353,0.00013899,2]
[391917096,1760984863006,-296.56184647,0.00013899,2]
[391917097,1760984863031,-98.511919,0.00013899,2]
[391917098,1760984867363,-401.488081,0.00013899,2]
[391917099,1760984867388,-500.0,0.00013899,2]
[391917100,1760984867411,-620.55277405,0.00013899,2]
[391917101,1760984867435,-500.0,0.00013899,2]
[391917102,1760984867459,-500.0,0.00013899,2]
[391917103,1760984867483,-500.0,0.00013899,2]
[391917104,1760984867503,-150.0,0.00013899,2]
[391917105,1760984867524,-11827.95914495,0.000139,2]
[391917106,1760984868203,-15000.0,0.000139,2]
[391917107,1760984868730,-15000.0,0.000139,2]
[391917108,1760984869216,-15000.0,0.000139,2]
[391917109,1760984869651,-15000.0,0.000139,2]
[391917110,1760984869774,-246.61072807,0.000139,2]
[391917111,1760984870431,-15000.0,0.000139,2]
[391917112,1760984870908,-15000.0,0.000139,2]
[391917113,1760984871395,-15000.0,0.000139,2]
[391917114,1760984871764,-179.43880913,0.000139,2]
[391917115,1760984871881,-15000.0,0.000139,2]
[391917116,1760984872057,2191.88041715,0.00013,2]
[391917117,1760984872272,-15000.0,0.000139,2]
[391917118,1760984872612,-15000.0,0.000139,2]
[391917119,1760984872948,-15000.0,0.000139,2]
[391917120,1760984873316,-15000.0,0.000139,2]
[391917121,1760984873682,-15000.0,0.000139,2]
[391917122,1760984874087,-15000.0,0.000139,2]
[391917123,1760984874202,-302.47002383,0.000139,2]
[391917124,1760984874661,-15000.0,0.000139,2]
[391917125,1760984875190,-15000.0,0.000139,2]
[391917126,1760984875580,-4538.25937745,0.000139,2]
[391917129,1760984896677,304.08910062,0.000125,2]
[391917138,1760984925970,884.75291928,0.0001,2]
[391917139,1760984928930,1180.14761265,0.00013699,2]
[391917186,1760985032222,-296.60699386,0.00014799,2]
[391917189,1760985032240,-1578.15414475,0.00014799,2]
[391917191,1760985032254,-872.96075395,0.00014824,2]
[391917194,1760985032272,-4518.61556887,0.00014824,2]
[391917197,1760985032294,-848.67011318,0.00014824,2]
[391917198,1760985032313,-208.05606491,0.00014899,2]
[391917199,1760985032328,-208.05606491,0.000149,2]
[391917200,1760985032346,-268.84471778,0.000149,2]
[391917201,1760985032360,-42.22700734,0.000149,2]
[391917202,1760985032376,-501.69882028,0.00014973,2]
[391917203,1760985032390,-500.0,0.00014973,2]
[391917204,1760985032405,-500.0,0.00014973,2]
[391917205,1760985032416,-500.72066446,0.00014973,2]
[391917206,1760985032427,-457.75777102,0.00014973,2]
[391917207,1760985032443,-42.24222898,0.00014973,2]
[391917208,1760985032455,-500.0,0.00014973,2]
[391917209,1760985032466,-500.0,0.00014973,2]
[391917210,1760985032486,-500.0,0.00014973,2]
[391917212,1760985032500,-300.0,0.00014998,2]
[391917215,1760985032513,-300.0,0.00014998,2]
[391917217,1760985032527,-157.75777102,0.00014998,2]
[391917220,1760985032543,-326.50057698,0.00014998,2]
[391917222,1760985032564,-715.741652,0.00014998,2]
[391917223,1760985032578,-150.0,0.00014998,2]
[391917224,1760985032592,-113.81910287,0.00014999,2]